fUSD/lending_fUSD_20251031
["ID","MTS","AMOUNT","RATE_DAILY","PERIOD"]
[392747224,1761902907082,562.96646166,0.00031506,120]
[392747225,1761902907408,660.87,0.00031232,120]
[392747226,1761902907652,603.89,0.00031232,120]
[392747227,1761902907707,660.87,0.00031506,120]
[392747228,1761902907884,603.89,0.00031506,120]
[392747229,1761902908140,500.0,0.00031232,120]
[392747231,1761902908688,500.0,0.00031506,120]
[392747232,1761902909158,500.0,0.00031232,120]
[392747233,1761902909389,500.0,0.00031506,120]
[392747234,1761902909850,150.0,0.00017,7]
[392747236,1761902910900,500.0,0.00031232,120]
[392747237,1761902911064,500.0,0.00031232,120]
[392747238,1761902911158,500.0,0.00031506,120]
[392747239,1761902911311,500.0,0.00031506,120]
[392747241,1761902912469,500.0,0.00031232,120]
[392747242,1761902912540,500.0,0.00031506,120]
[392747245,1761902912982,500.0,0.00031232,120]
[392747247,1761902913217,500.0,0.00031506,120]
[392747248,1761902915454,500.0,0.00031232,120]
[392747249,1761902915693,500.0,0.00031506,120]
[392747251,1761902922372,500.0,0.00031232,120]
[392747252,1761902922614,500.0,0.00031506,120]
[392747253,1761902923508,500.0,0.00031232,120]
[392747254,1761902923754,500.0,0.00031506,120]
[392747255,1761902925879,500.0,0.00031232,120]
[392747256,1761902926127,500.0,0.00031506,120]
[392747257,1761902932285,500.0,0.00031232,120]
[392747258,1761902932539,500.0,0.00031506,120]
[392747259,1761902936116,293.165798,0.00031232,120]
[392747261,1761902937459,500.0,0.00031232,120]
[392747262,1761902937703,500.0,0.00031506,120]
[392747263,1761902937762,500.0,0.00031232,120]
[392747264,1761902937910,500.0,0.00031232,120]
[392747265,1761902938047,500.0,0.00031506,120]
[392747266,1761902938184,500.0,0.00031506,120]
[392747269,1761902939506,500.0,0.00031232,120]
[392747270,1761902939988,500.0,0.00031506,120]
[392747271,1761902941044,500.0,0.00031232,120]
[392747272,1761902941178,500.0,0.00031232,120]
[392747273,1761902941278,500.0,0.00031506,120]
[392747274,1761902941441,500.0,0.00031506,120]
[392747275,1761902943468,500.0,0.00031232,120]
[392747276,1761902943711,500.0,0.00031506,120]
[392747280,1761902947123,500.0,0.00031232,120]
[392747281,1761902947364,500.0,0.00031506,120]
[392747282,1761902947938,500.0,0.00031232,120]
[392747283,1761902948181,640.4295485,0.00031506,120]
[392747285,1761902950959,500.0,0.00031232,120]
[392747286,1761902951064,500.0,0.00031232,120]
[392747287,1761902951223,500.0,0.00031506,120]
[392747288,1761902951297,500.0,0.00031506,120]
[392747289,1761902952182,500.0,0.00031232,120]
[392747290,1761902952421,243.79650374,0.00031506,120]
[392747291,1761902953405,500.0,0.00031232,120]
[392747292,1761902953672,500.0,0.00031506,120]
[392747293,1761902954335,327.07916659,0.00031232,120]
[392747295,1761902956120,500.0,0.00031232,120]
[392747296,1761902956368,500.0,0.00031506,120]
[392747298,1761902957761,587.62,0.00031232,120]
[392747299,1761902958031,500.0,0.00031232,120]
[392747300,1761902958080,587.62,0.00031506,120]
[392747301,1761902958267,483.23830949,0.00031506,120]
[392747302,1761902960108,570.34303446,0.00031232,120]
[392747305,1761902961453,500.0,0.00031232,120]
[392747306,1761902961682,500.0,0.00031506,120]
[392747307,1761902963591,500.0,0.00031232,120]
[392747308,1761902963877,500.0,0.00031506,120]
[392747309,1761902965372,500.0,0.00031232,120]
[392747310,1761902967665,500.0,0.00031232,120]
[392747311,1761902967912,500.0,0.00031506,120]
[392747313,1761902969805,500.0,0.00031232,120]
[392747314,1761902970020,500.0,0.00031506,120]
[392747315,1761902971396,500.0,0.00031232,120]
[392747316,1761902971590,500.0,0.00031506,120]
[392747317,1761902972081,500.0,0.00031232,120]
[392747318,1761902972330,500.0,0.00031506,120]
[392747319,1761902972375,500.0,0.00031232,120]
[392747320,1761902972569,500.0,0.00031506,120]
[392747321,1761902973582,500.0,0.00031232,120]
[392747322,1761902973792,500.0,0.00031506,120]
[392747323,1761902977507,500.0,0.00031232,120]
[392747324,1761902977744,500.0,0.00031506,120]
[392747325,1761902979373,500.0,0.00031232,120]
[392747326,1761902979630,500.0,0.00031506,120]
[392747327,1761902980681,500.0,0.00031232,120]
[392747328,1761902980848,583.01,0.00031232,120]
[392747329,1761902980901,190.06788246,0.00031506,120]
[392747330,1761902980980,500.0,0.00031232,120]
[392747331,1761902981113,583.01,0.00031506,120]
[392747332,1761902981228,500.0,0.00031506,120]
[392747333,1761902982055,500.0,0.00031232,120]
[392747334,1761902982125,500.0,0.00031506,120]
[392747335,1761902983606,500.0,0.00031232,120]
[392747336,1761902983844,500.0,0.00031506,120]
[392747338,1761902989195,538.78,0.00031232,120]
[392747339,1761902989417,538.78,0.00031506,120]
[392747340,1761902990127,500.0,0.00031232,120]
[392747341,1761902990318,1000.0,0.00031232,120]
[392747342,1761902990364,500.0,0.00031506,120]
[392747343,1761902990542,1000.0,0.00031506,120]
[392747344,1761902992261,-720.29355168,0.00013702,2]
[392747347,1761902993547,500.0,0.00031232,120]
[392747348,1761902993790,500.0,0.00031506,120]
[392747349,1761902996121,-372.22073145,0.00013702,2]
[392747350,1761902996170,-414.26840955,0.00013702,2]
[392747351,1761902996576,500.0,0.00031232,120]
[392747352,1761902996799,500.0,0.00031232,120]
[392747353,1761902996844,500.0,0.00031506,120]
[392747354,1761902997060,500.0,0.00031506,120]
[392747355,1761902997833,500.0,0.00031232,120]
[392747356,1761902997876,598.18,0.00031232,120]
[392747357,1761902998329,500.0,0.00031506,120]
[392747358,1761902998371,598.18,0.00031506,120]
[392747359,1761902998602,500.0,0.00031232,120]
[392747360,1761902998864,500.0,0.00031506,120]
[392747361,1761902999746,-662.48193023,0.00013702,2]
[392747362,1761903002629,500.0,0.00031232,120]
[392747363,1761903002685,500.0,0.00031506,120]
[392747364,1761903005243,-360.36259135,0.00013702,2]
[392747365,1761903005343,500.0,0.00031232,120]
[392747366,1761903005602,500.0,0.00031506,120]
[392747367,1761903006616,500.0,0.00031232,120]
[392747368,1761903006885,500.0,0.00031506,120]
[392747369,1761903007009,500.0,0.00031232,120]
[392747370,1761903007072,500.0,0.00031232,120]
[392747371,1761903007207,500.0,0.00031232,120]
[392747372,1761903007279,500.0,0.00031506,120]
[392747373,1761903007328,500.0,0.00031506,120]
[392747374,1761903007382,574.04,0.00031232,120]
[392747375,1761903007522,574.04,0.00031506,120]
[392747376,1761903007604,500.0,0.00031506,120]
[392747377,1761903010754,-500.0,0.00013663,2]
[392747378,1761903011030,802.06,0.00031232,120]
[392747379,1761903011274,802.06,0.00031506,120]
[392747380,1761903012427,-320.37050528,0.00013663,2]
[392747381,1761903013051,500.0,0.00031232,120]
[392747382,1761903013127,500.0,0.00031506,120]
[392747383,1761903014617,-900.0,0.00013663,2]
[392747385,1761903014984,500.0,0.00031232,120]
[392747386,1761903015244,500.0,0.00031506,120]
[392747387,1761903015666,500.0,0.00031232,120]
[392747388,1761903015723,500.0,0.00031232,120]
[392747389,1761903015893,500.0,0.00031506,120]
[392747390,1761903015940,500.0,0.00031506,120]
[392747391,1761903017281,500.0,0.00031232,120]
[392747392,1761903017435,-847.30996,0.00013663,2]
[392747393,1761903017537,500.0,0.00031506,120]
[392747394,1761903018084,500.0,0.00031232,120]
[392747395,1761903018316,500.0,0.00031506,120]
[392747396,1761903020859,500.0,0.00031232,120]
[392747397,1761903020907,452.70233386,0.00031232,120]
[392747398,1761903020938,-156.62103444,0.00013663,2]
[392747399,1761903020988,500.0,0.00031232,120]
[392747400,1761903021083,500.0,0.00031506,120]
[392747401,1761903021401,500.0,0.00031506,120]
[392747402,1761903022145,608.7,0.00031232,120]
[392747403,1761903022424,608.7,0.00031506,120]
[392747404,1761903022737,569.98,0.00031232,120]
[392747405,1761903022849,-430.43413307,0.00013663,2]
[392747406,1761903022972,569.98,0.00031506,120]
[392747407,1761903023582,-177.38156115,0.00013663,2]
[392747408,1761903024968,500.0,0.00031232,120]
[392747409,1761903025193,500.0,0.00031506,120]
[392747410,1761903025509,433.66614101,0.00031232,120]
[392747411,1761903026636,-351.62103444,0.00013663,2]
[392747412,1761903026961,500.0,0.00031232,120]
[392747413,1761903027223,500.0,0.00031506,120]
[392747414,1761903027817,178.37946453,0.00031232,120]
[392747415,1761903028267,-345.73462432,0.00013663,2]
[392747416,1761903028899,500.0,0.00031232,120]
[392747417,1761903028967,500.0,0.00031232,120]
[392747418,1761903029121,500.0,0.00031506,120]
[392747419,1761903029176,500.0,0.00031506,120]
[392747420,1761903031463,366.13882609,0.00031232,120]
[392747421,1761903031702,-453.78538416,0.00013663,2]
[392747422,1761903031955,500.0,0.00031232,120]
[392747427,1761903032149,-900.0,0.00013663,2]
[392747429,1761903032207,500.0,0.00031506,120]
[392747430,1761903032221,-7618.21176314,0.00013663,2]
[392747431,1761903032231,-1173.49278574,0.00013702,2]
[392747432,1761903032240,-1200.0,0.00013989,2]
[392747433,1761903032249,-6521.48220229,0.0001399,2]
[392747434,1761903032258,-300.0,0.00014004,2]
[392747435,1761903032267,-300.0,0.00014004,2]
[392747436,1761903032277,-1625.78104441,0.00014005,2]
[392747437,1761903032287,-874.21895559,0.00014005,2]
[392747438,1761903032297,-300.0,0.0001402,2]
[392747439,1761903032306,-300.0,0.0001405,2]
[392747440,1761903032315,-1829.94253958,0.00014057,2]
[392747441,1761903032327,-670.05746042,0.00014057,2]
[392747442,1761903032336,-2512.81341423,0.00014057,2]
[392747443,1761903032345,-151.0,0.0001411,2]
[392747444,1761903032354,-277.35679052,0.0001411,2]
[392747445,1761903032364,-150.0,0.00014116,2]
[392747446,1761903032373,-500.0,0.00014117,2]
[392747447,1761903032382,-285.77760128,0.00014117,2]
[392747448,1761903032391,-500.0,0.00014117,2]
[392747449,1761903032400,-331.52634937,0.00014117,2]
[392747450,1761903032431,-168.47365063,0.00014117,2]
[392747451,1761903032439,-500.0,0.00014117,2]
[392747452,1761903032449,-500.0,0.00014117,2]
[392747453,1761903032458,-128.13334323,0.00014117,2]
[392747454,1761903032473,-371.86665677,0.00014117,2]
[392747455,1761903032483,-500.0,0.00014117,2]
[392747456,1761903032491,-154.75692129,0.00014117,2]
[392747457,1761903032501,-175.77739725,0.00014117,2]
[392747458,1761903032509,-733.54511482,0.00014118,2]
[392747465,1761903033519,500.0,0.00031232,120]
[392747466,1761903033912,500.0,0.00031506,120]
[392747467,1761903033974,500.0,0.00031232,120]
[392747468,1761903034191,185.8838984,0.00031506,120]
[392747469,1761903034907,500.0,0.00031232,120]
[392747470,1761903035147,500.0,0.00031506,120]
[392747471,1761903035235,771.53,0.00031232,120]
[392747472,1761903035487,771.53,0.00031506,120]
[392747473,1761903037144,500.0,0.00031232,120]
[392747474,1761903037388,500.0,0.00031506,120]
[392747475,1761903037538,500.0,0.00031232,120]
[392747476,1761903037707,500.0,0.00031232,120]
[392747477,1761903037792,500.0,0.00031506,120]
[392747478,1761903037953,500.0,0.00031506,120]
[392747479,1761903038126,-3158.5,0.00014118,2]
[392747480,1761903038139,-1006.2910037,0.00014118,2]
[392747481,1761903038153,-2625.0,0.00014118,2]
[392747482,1761903038222,-1022.67293322,0.00014118,2]
[392747483,1761903038245,-1191.9,0.00014118,2]
[392747484,1761903038344,-82076.43094826,0.00014118,2]
[392747485,1761903038354,-150.99,0.00014126,2]
[392747486,1761903038365,-2487.7,0.00014126,2]
[392747487,1761903038375,-500.0,0.00014173,2]
[392747488,1761903038386,-406.95163581,0.00014173,2]
[392747489,1761903038396,-500.0,0.00014173,2]
[392747491,1761903038406,-500.0,0.00014173,2]
[392747493,1761903038416,-150.0,0.00014213,2]
[392747495,1761903038426,-363.34,0.00014213,2]
[392747497,1761903038436,-62664.69,0.00014213,2]
[392747500,1761903038447,-9999.99,0.00014213,2]
[392747502,1761903038458,-168.05,0.00014258,2]
[392747504,1761903038468,-7328.99665172,0.00014561,2]
[392747506,1761903038478,-1000.0,0.00014721,2]
[392747508,1761903038488,-1000.0,0.00014721,2]
[392747510,1761903038499,-1076.72875842,0.000148,2]
[392747512,1761903038509,-1076.72875834,0.00014811,2]
[392747514,1761903038520,-1076.72875834,0.00014822,2]
[392747516,1761903038531,-1076.72875834,0.00014833,2]
[392747519,1761903038541,-1076.72875834,0.00014844,2]
[392747522,1761903038552,-1076.72875834,0.00014856,2]
[392747525,1761903038561,-1076.72875834,0.00014867,2]
[392747528,1761903038571,-3420.0,0.0001487,2]
[392747530,1761903038581,-6769.359,0.0001487,2]
[392747532,1761903038592,-607.0,0.0001487,2]
[392747534,1761903038602,-159.718,0.0001487,2]
[392747536,1761903038612,-500.0,0.00014873,2]
[392747538,1761903038623,-500.0,0.00014873,2]
[392747540,1761903038634,-500.0,0.00014873,2]
[392747542,1761903038644,-500.0,0.00014873,2]
[392747543,1761903038654,-500.0,0.00014873,2]
[392747545,1761903038664,-500.0,0.00014873,2]
[392747547,1761903038674,-1076.72875834,0.00014878,2]
[392747549,1761903038684,-1076.72875834,0.00014889,2]
[392747551,1761903038694,-1076.72875834,0.000149,2]
[392747554,1761903038705,-6923.3986754,0.000149,2]
[392747556,1761903038715,-166.43588594,0.000149,2]
[392747558,1761903038726,-197.0,0.00014954,2]
[392747560,1761903038736,-500.0,0.00014973,2]
[392747562,1761903038746,-504.51828523,0.00014973,2]
[392747564,1761903038756,-500.0,0.00014973,2]
[392747566,1761903038766,-500.0,0.00014973,2]
[392747567,1761903038777,-500.0,0.00014973,2]
[392747568,1761903038787,-500.0,0.00014973,2]
[392747569,1761903038797,-500.0,0.00014973,2]
[392747570,1761903038808,-500.0,0.00014973,2]
[392747571,1761903038818,-501.84277717,0.00014973,2]
[392747572,1761903038829,-500.0,0.00014973,2]
[392747573,1761903038839,-500.0,0.00014973,2]
[392747574,1761903038850,-500.0,0.00014973,2]
[392747575,1761903038861,-500.0,0.00014973,2]
[392747576,1761903038871,-500.0,0.00014973,2]
[392747577,1761903038882,-503.48730711,0.00014973,2]
[392747578,1761903038893,-500.0,0.00014973,2]
[392747579,1761903038903,-300.0,0.00014989,2]
[392747580,1761903038913,-500.0,0.0001499,2]
[392747581,1761903038923,-1314.26,0.00014991,2]
[392747582,1761903038934,-151.0,0.00014991,2]
[392747583,1761903038944,-151.0,0.00014991,2]
[392747584,1761903038955,-151.0,0.00014991,2]
[392747585,1761903038966,-151.0,0.00014991,2]
[392747586,1761903038976,-151.0,0.00014991,2]
[392747587,1761903038986,-151.0,0.00014991,2]
[392747588,1761903038997,-151.0,0.00014991,2]
[392747589,1761903039007,-151.0,0.00014991,2]
[392747590,1761903039017,-200.0,0.00014991,2]
[392747591,1761903039029,-500.0,0.00014991,2]
[392747592,1761903039040,-151.0,0.00014991,2]
[392747593,1761903039050,-500.0,0.00014991,2]
[392747594,1761903039060,-500.0,0.00014991,2]
[392747595,1761903039070,-151.0,0.00014991,2]
[392747596,1761903039081,-500.0,0.00014991,2]
[392747597,1761903039092,-500.0,0.00014991,2]
[392747598,1761903039102,-151.0,0.00014991,2]
[392747599,1761903039115,-250.0,0.00014991,2]
[392747600,1761903039125,-500.0,0.00014991,2]
[392747601,1761903039135,-500.0,0.00014991,2]
[392747602,1761903039145,-151.0,0.00014991,2]
[392747603,1761903039155,-250.0,0.00014991,2]
[392747604,1761903039166,-500.0,0.00014991,2]
[392747605,1761903039176,-151.0,0.00014991,2]
[392747606,1761903039190,-250.0,0.00014991,2]
[392747607,1761903039201,-500.0,0.00014991,2]
[392747608,1761903039211,-574.12855637,0.00014991,2]
[392747609,1761903039221,-151.0,0.00014991,2]
[392747610,1761903039232,-250.0,0.00014991,2]
[392747611,1761903039243,-500.0,0.00014991,2]
[392747612,1761903039253,-151.0,0.00014991,2]
[392747613,1761903039264,-250.0,0.00014991,2]
[392747614,1761903039275,-151.0,0.00014991,2]
[392747615,1761903039285,-209.40437684,0.00014991,2]
[392747616,1761903039295,-500.0,0.00014991,2]
[392747617,1761903039304,-250.0,0.00014991,2]
[392747618,1761903039315,-151.0,0.00014991,2]
[392747619,1761903039325,-500.0,0.00014991,2]
[392747620,1761903039337,-151.0,0.00014991,2]
[392747621,1761903039348,-250.0,0.00014991,2]
[392747622,1761903039360,-151.0,0.00014991,2]
[392747623,1761903039370,-500.0,0.00014991,2]
[392747624,1761903039384,-151.0,0.00014991,2]
[392747625,1761903039394,-183.38443612,0.00014991,2]
[392747626,1761903039404,-500.0,0.00014991,2]
[392747627,1761903039415,-169.32010546,0.00014991,2]
[392747628,1761903039425,-500.0,0.00014991,2]
[392747629,1761903039434,-500.0,0.00014991,2]
[392747630,1761903039444,-500.0,0.00014991,2]
[392747631,1761903039454,-500.0,0.00014991,2]
[392747632,1761903039464,-500.0,0.00014991,2]
[392747633,1761903039474,-500.0,0.00014991,2]
[392747634,1761903039484,-500.0,0.00014991,2]
[392747635,1761903039494,-500.0,0.00014991,2]
[392747636,1761903039503,-500.0,0.00014991,2]
[392747637,1761903039513,-151.0,0.00014991,2]
[392747638,1761903039523,-260.62972883,0.00014991,2]
[392747639,1761903039533,-151.0,0.00014991,2]
[392747640,1761903039543,-250.0,0.00014991,2]
[392747641,1761903039553,-151.0,0.00014991,2]
[392747642,1761903039567,-264.6985396,0.00014991,2]
[392747643,1761903039577,-151.0,0.00014991,2]
[392747644,1761903039587,-151.0,0.00014991,2]
[392747645,1761903039597,-500.0,0.00014991,2]
[392747646,1761903039607,-233.54514051,0.00014991,2]
[392747647,1761903039616,-500.0,0.00014991,2]
[392747648,1761903039626,-151.16189043,0.00014991,2]
[392747649,1761903039636,-500.0,0.00014991,2]
[392747650,1761903039646,-500.0,0.00014991,2]
[392747651,1761903039656,-500.0,0.00014991,2]
[392747652,1761903039666,-500.0,0.00014991,2]
[392747653,1761903039676,-500.0,0.00014991,2]
[392747654,1761903039686,-500.0,0.00014991,2]
[392747655,1761903039696,-500.0,0.00014991,2]
[392747656,1761903039706,-500.0,0.00014991,2]
[392747657,1761903039716,-500.0,0.00014991,2]
[392747658,1761903039726,-151.0,0.00014997,2]
[392747659,1761903039736,-500.0,0.00014999,2]
[392747660,1761903039746,-500.0,0.00014999,2]
[392747661,1761903039756,-500.0,0.00014999,2]
[392747662,1761903039768,-500.0,0.00014999,2]
[392747663,1761903039778,-500.0,0.00014999,2]
[392747664,1761903039788,-189.02346334,0.00014999,2]
[392747665,1761903039798,-500.0,0.00014999,2]
[392747666,1761903039809,-559.46398711,0.00014999,2]
[392747667,1761903039819,-500.0,0.00014999,2]
[392747668,1761903039828,-500.0,0.00014999,2]
[392747669,1761903039838,-500.0,0.00014999,2]
[392747670,1761903039848,-500.0,0.00014999,2]
[392747671,1761903039858,-15384.06732477,0.00014999,2]
[392747672,1761903039868,-556.63917551,0.00014999,2]
[392747673,1761903039879,-500.0,0.00014999,2]
[392747674,1761903039889,-500.0,0.00014999,2]
[392747675,1761903039899,-187.44485345,0.00014999,2]
[392747676,1761903039910,-1395.0,0.00015,2]
[392747677,1761903039920,-22539.12976787,0.00015,2]
[392747678,1761903039934,-2535360.81540612,0.00015,2]
[392747679,1761903039946,-1623.6913474,0.00015,2]
[392747689,1761903040499,-15202.50571926,0.00015,2]
[392747690,1761903040539,-323.74785147,0.00015,2]
[392747704,1761903041021,-235.48294933,0.00015,2]
[392747706,1761903041032,-425.84246072,0.00015,2]
[392747710,1761903041058,-500.0,0.00015,2]
[392747757,1761903041513,-3475.0573329,0.00015,2]
[392747760,1761903041532,-8389.52614796,0.00015,2]
[392747763,1761903041551,-764179.45815193,0.00015,2]
[392747765,1761903041562,-3831.36960666,0.00015,2]
[392747767,1761903041573,-1127.17934932,0.00015,2]
[392747769,1761903041583,-348.93830026,0.00015,2]
[392747820,1761903042983,500.0,0.00031232,120]
[392747821,1761903043244,500.0,0.00031506,120]
[392747828,1761903043655,-435.7588375,0.00015,2]
[392747829,1761903043713,500.0,0.00031232,120]
[392747830,1761903043812,-564.2411625,0.00015,2]
[392747831,1761903044116,-1717.17843041,0.00015,2]
[392747833,1761903044171,500.0,0.00031506,120]
[392747835,1761903044183,-511820.70805709,0.00015,2]
[392747837,1761903044194,-157504.855755,0.00015,2]
[392747839,1761903044288,500.0,0.00031232,120]
[392747840,1761903044368,500.0,0.00031506,120]
[392747856,1761903046458,-682.144,0.0001487,2]
[392747857,1761903046468,-1075.96088123,0.00015,2]
[392747858,1761903046479,-8298.019125,0.00015,2]
[392747859,1761903046490,-2371.692588,0.00015,2]
[392747860,1761903046502,-2801.78890422,0.00015,2]
[392747861,1761903046514,-3501.3890001,0.00015,2]
[392747862,1761903046525,-511.05,0.00015,2]
[392747863,1761903046536,-3991.33224,0.00015,2]
[392747889,1761903047452,500.0,0.00031232,120]
[392747890,1761903047616,787.44,0.00031232,120]
[392747891,1761903047678,500.0,0.00031506,120]
[392747892,1761903047854,787.44,0.00031506,120]
[392747893,1761903048277,500.0,0.00031232,120]
[392747894,1761903048518,500.0,0.00031506,120]
[392747895,1761903048618,284.58280376,0.00031232,120]
[392747896,1761903049041,500.0,0.00031232,120]
[392747897,1761903049268,500.0,0.00031506,120]
[392747898,1761903049859,500.0,0.00031232,120]
[392747899,1761903050106,543.444384,0.00031506,120]
[392747900,1761903050555,197.0,0.00017,3]
[392747902,1761903057815,500.0,0.00031232,120]
[392747903,1761903058064,500.0,0.00031506,120]
[392747904,1761903059270,500.0,0.00031232,120]
[392747905,1761903059511,500.0,0.00031506,120]
[392747906,1761903060336,1553.47,0.00031232,120]
[392747907,1761903060589,1553.47,0.00031506,120]
[392747908,1761903062151,500.0,0.00031232,120]
[392747909,1761903062206,1366.98,0.00031232,120]
[392747910,1761903062345,500.0,0.00031232,120]
[392747911,1761903062398,500.0,0.00031506,120]
[392747912,1761903062450,1366.98,0.00031506,120]
[392747913,1761903062582,500.0,0.00031506,120]
[392747914,1761903062759,500.0,0.00031232,120]
[392747915,1761903062872,500.0,0.00031232,120]
[392747916,1761903063024,500.0,0.00031506,120]
[392747917,1761903063098,500.0,0.00031506,120]
[392747918,1761903063160,500.0,0.00031232,120]
[392747919,1761903063392,500.0,0.00031506,120]
[392747920,1761903064069,500.0,0.00031232,120]
[392747921,1761903064293,500.0,0.00031506,120]
[392747922,1761903067186,535.36229787,0.00031232,120]
[392747923,1761903067306,500.0,0.00031232,120]
[392747924,1761903067361,500.0,0.00031232,120]
[392747925,1761903067544,500.0,0.00031506,120]
[392747926,1761903067614,500.0,0.00031506,120]
[392747927,1761903069597,500.0,0.00031232,120]
[392747928,1761903069826,500.0,0.00031506,120]
[392747929,1761903071000,500.0,0.00031232,120]
[392747930,1761903071058,500.0,0.00031232,120]
[392747931,1761903071249,500.0,0.00031506,120]
[392747932,1761903071302,500.0,0.00031506,120]
[392747933,1761903072685,500.0,0.00031232,120]
[392747934,1761903072972,500.0,0.00031506,120]
[392747936,1761903073671,500.0,0.00031232,120]
[392747937,1761903073847,500.0,0.00031232,120]
[392747938,1761903073905,500.0,0.00031506,120]
[392747939,1761903073955,517.63900858,0.00031232,120]
[392747940,1761903074375,500.0,0.00031506,120]
[392747941,1761903075924,500.0,0.00031232,120]
[392747942,1761903076158,500.0,0.00031506,120]
[392747943,1761903076685,500.0,0.00031232,120]
[392747944,1761903076929,500.0,0.00031506,120]
[392747945,1761903081732,292.96286809,0.00031232,120]
[392747946,1761903082082,603.15,0.00031232,120]
[392747947,1761903082333,603.15,0.00031506,120]
[392747948,1761903086001,500.0,0.00031232,120]
[392747949,1761903086242,500.0,0.00031506,120]
[392747950,1761903086497,545.21639133,0.00031232,120]
[392747951,1761903088954,635.12653014,0.00031232,120]
[392747952,1761903089037,512.49,0.00031232,120]
[392747953,1761903089308,512.49,0.00031506,120]
[392747954,1761903090963,500.0,0.00031232,120]
[392747955,1761903091214,500.0,0.00031506,120]
[392747956,1761903096518,500.0,0.00031232,120]
[392747957,1761903096767,500.0,0.00031506,120]
[392747958,1761903098184,500.0,0.00031232,120]
[392747959,1761903098418,500.0,0.00031506,120]
[392747960,1761903098924,507.37,0.00031232,120]
[392747961,1761903099136,150.0,0.00017,7]
[392747962,1761903099195,507.37,0.00031506,120]
[392747963,1761903102733,500.0,0.00031232,120]
[392747964,1761903102975,500.0,0.00031506,120]
[392747965,1761903104682,500.0,0.00031232,120]
[392747966,1761903104812,500.0,0.00031232,120]
[392747967,1761903104935,500.0,0.00031506,120]
[392747968,1761903105024,500.0,0.00031232,120]
[392747969,1761903105073,500.0,0.00031506,120]
[392747970,1761903105259,500.0,0.00031506,120]
[392747971,1761903106670,500.0,0.00031232,120]
[392747972,1761903106909,500.0,0.00031506,120]
[392747973,1761903108359,500.0,0.00031232,120]
[392747974,1761903108587,500.0,0.00031506,120]
[392747975,1761903108644,500.0,0.00031232,120]
[392747976,1761903108881,500.0,0.00031506,120]
[392747977,1761903110227,500.0,0.00031232,120]
[392747978,1761903110486,500.0,0.00031506,120]
[392747979,1761903112601,739.89,0.00031232,120]